[Event "Grand Prix Romania 1st Stage 2024"]
[Site "Bucuresti"]
[Date "2024.03.23"]
[Round "3.19"]
[White "Dumitrescu, Daniel"]
[Black "Moroni, Luca Jr"]
[Result "0-1"]
[ECO "A41"]
[WhiteElo "1997"]
[BlackElo "2580"]
[Annotator "TA"]
[PlyCount "96"]
[EventDate "2024.03.20"]
[EventType "swiss"]
[EventCountry "ROU"]
[SourceTitle "playchess.com"]
[Source "ChessBase"]
[SourceQuality "1"]
[TimeControl "900+5"]

{[%evp 9,96,46,58,40,54,48,79,33,35,25,45,24,28,29,45,34,62,27,37,39,43,39,59,39,38,17,17,17,28,28,29,18,102,-45,-38,-36,-37,-82,-94,-94,-81,-118,-111,-186,-194,-195,-182,-181,-184,-193,-186,-180,-110,-163,-156,-163,-162,-153,-162,-151,-154,-140,-139,-195,-200,-229,-229,-185,-219,-197,-197,-626,-568,-699,-684,-1493,-1354,-990,-832,-2331,-2224,-29936,-10680,-29972,-29973,-5700,-29974,-29977,-29978]} 1. Nf3 {[%emt 0:00:04]} g6 {[%emt 0:00:02]} 2. g3 {[%emt 0:00:02]} Bg7 {[%emt 0:00:01]} 3. d4 {[%emt 0:00:01]} d6 {[%emt 0:00:02]} 4. Bg2 {[%emt 0:00:02]} Bd7 {[%emt 0:00:01]} 5. O-O {[%emt 0:00:03]} Qc8 {[%emt 0:00:02]} 6. e4 {[%emt 0:00:05]} Nc6 {[%emt 0:00:08]} 7. c3 {[%emt 0:00:04]} Bh3 {[%emt 0:00:19]} 8. Qb3 {[%emt 0:00:42]} ({White should try} 8. Bxh3 $16 Qxh3 9. Qb3) 8... Bxg2 $14 {[%emt 0:00:25]} 9. Kxg2 {[%emt 0:00:02]} Nf6 {[%emt 0:00:11]} 10. Re1 {[%emt 0:00:07]} O-O {[%emt 0:00:26]} 11. Bg5 {[%emt 0:00:18]} h6 {[%emt 0:00:26]} 12. Bxf6 {[%emt 0:00:04]} Bxf6 {[%emt 0:00:08]} 13. Nbd2 {[%emt 0:00:03]} Bg7 {[%emt 0:00:07]} 14. Nc4 {[%emt 0:01:12]} Rb8 {[%emt 0:00:13]} 15. a4 {[%emt 0:00:06]} a6 {[%emt 0:00:23]} 16. a5 {[%emt 0:00:34]} e6 {[%emt 0:00:17]} 17. e5 {[%emt 0:00:32]} dxe5 {[%emt 0:00:18]} 18. Ncxe5 {[%emt 0:00:13]} Nxe5 {[%emt 0:00:39]} 19. Nxe5 {[%emt 0:00:02]} c5 {[%emt 0:00:09]} 20. d5 {[%emt 0:01:41]} Qc7 {[%emt 0:00:13]} (20... exd5 $11 21. Qxd5 Qf5) 21. Nf3 {[%emt 0:00:17]} ({White has to play} 21. d6 $1 $16 {[%cal Rd6c7]} Qxd6 22. Rad1) 21... c4 $15 {[%emt 0:00:17]} 22. d6 $1 {[%emt 0:00:12]} Qc6 {[%emt 0:00:45]} 23. Qb6 {[%emt 0:00:19]} Qxb6 {[%emt 0:00:33]} 24. axb6 {[%emt 0:00:01]} Rbc8 {[%emt 0:00:16]} 25. d7 {[%emt 0:00:23] [#]} Rc6 {[%emt 0:00:21]} 26. Rad1 {[%emt 0:02:26]} (26. Ra4 $17) 26... Rd8 $1 $19 {[%emt 0:00:03]} (26... Rxb6 $2 27. d8=Q (27. d8=B Rxb2 28. Ne5 Rb5 $16) 27... Rxd8 28. Rxd8+ $18) 27. Ne5 {[%emt 0:00:01]} Bxe5 {[%emt 0:00:38]} (27... Rxb6 28. Nxc4 Rc6 29. Na5 $17) 28. Rxe5 {[%emt 0:00:02][%mdl 4096] Endgame. KRR-KRR} Kf8 {[%emt 0:00:03][%cal Of8e7]} 29. Re4 {[%emt 0:03:06]} Ke7 {[%emt 0:00:07]} (29... Rxb6 30. Rxc4 Rxb2 (30... Ke7 31. Rc7 $17) 31. Rc7) 30. Red4 {[%emt 0:00:02]} f6 {[%emt 0:00:55]} (30... Rxb6 $19 31. Rxc4 Rxd7 (31... Rxb2 $2 32. Rc7 $17) 32. Rxd7+ Kxd7 33. Rd4+ Ke7) 31. Rh4 {[%emt 0:01:00]} (31. R1d2 $17) 31... h5 {[%emt 0:00:13]} (31... Rxd7 32. Rxd7+ Kxd7 33. Rxh6 $11) (31... Rxb6 32. Rxh6 e5 33. Rxg6 Rxb2 34. Rg7+ Ke6 35. h4 $16) 32. g4 {[%emt 0:00:14]} Rxd7 {[%emt 0:01:35]} (32... Rxb6 33. gxh5 gxh5 (33... Rxb2 $2 34. hxg6 Rb5 35. Rh7+ Kf8 36. g7+ Kf7 37. h4 $18) 34. Rxh5 Rxb2 35. Rh7+ Kf8 36. Rd4 $11) 33. Rxd7+ Kxd7 {[%emt 0:00:01]} 34. gxh5 {[%emt 0:00:49]} gxh5 {[%emt 0:00:07]} (34... Rxb6 $2 35. h6 (35. Rxc4 gxh5 36. b4 Rc6 $17) (35. hxg6 Rxb2 36. g7 Rb5 $18) 35... Rc6 36. h7 $18) 35. Rxh5 {[%emt 0:00:01]} Rxb6 {[%emt 0:00:01] KR-KR} 36. h4 {[%emt 0:00:11]} (36. Rh7+ $17 Kd6 37. h4) 36... Rxb2 {[%emt 0:00:11]} 37. Rc5 {[%emt 0:00:08]} b5 {[%emt 0:01:41]} 38. h5 {[%emt 0:00:30] Threatens to win with h6.} Ke7 {[%emt 0:00:09]} 39. Rc7+ {[%emt 0:02:02] [#]} Kf8 $1 {[%emt 0:00:02]} ({Not} 39... Kd6 $2 40. h6 Kxc7 (40... Rxf2+ $2 41. Kxf2 Kxc7 42. h7 $18) 41. h7 $18) 40. Rc6 $2 {[%emt 0:00:03]} (40. Kf3) 40... Rb3 {[%emt 0:00:26]} 41. Rxe6 {[%emt 0:00:10]} Kg7 {[%emt 0:00:04]} ({Less strong is} 41... Rxc3 42. h6 (42. Rxf6+ $2 {perishes.} Kg7 $19) 42... Kf7 43. Rxa6 $19) 42. Rxa6 {[%emt 0:00:25]} Rxc3 {[%emt 0:00:04] Strongly threatening ...b4.} 43. h6+ {[%emt 0:00:09]} Kg6 {[%emt 0:00:23][%cal Ob5b4] Hoping for ...b4!} 44. h7 {[%emt 0:00:06]} Kxh7 {[%emt 0:00:06]} 45. Rxf6 {[%emt 0:00:01]} b4 {[%emt 0:00:04] ( -> ...Rc2)} 46. Kf1 {[%emt 0:00:11]} b3 {[%emt 0:00:02]} 47. Rb6 {[%emt 0:00:06]} Rc2 {[%emt 0:00:09]} 48. Ke1 {[%emt 0:00:02]} b2 {[%emt 0:00:03] Weighted Error Value: White=0.80/Black=0.09 (flawless) .  Mistake:       	White=6     	Black=2      Inaccurate:     	White=4     	Black=2      OK:         	White=9     	Black=15     Best:        	White=2     	Black=4      Strong:       	White=1     	Black=2} 0-1

[Event "Grand Prix Romania 1st Stage 2024"]
[Site "Bucuresti"]
[Date "2024.03.23"]
[Round "3.20"]
[White "Jianu, Vlad-Cristian"]
[Black "Voiteanu, Gabriel"]
[Result "1-0"]
[ECO "D77"]
[WhiteElo "2491"]
[BlackElo "2120"]
[Annotator "TA"]
[PlyCount "77"]
[EventDate "2024.03.20"]
[EventType "swiss"]
[EventCountry "ROU"]
[SourceTitle "playchess.com"]
[Source "ChessBase"]
[SourceQuality "1"]
[TimeControl "900+5"]

{[%evp 14,77,36,20,57,43,49,19,19,12,28,0,55,35,29,18,18,-4,69,63,43,15,13,2,129,79,110,98,106,44,52,47,65,30,27,26,27,34,32,4,27,0,64,42,119,118,115,116,120,106,112,96,200,191,196,178,571,589,591,414,889,894,867,859,1141,1039]} 1. d4 {[%emt 0:00:03]} d5 {[%emt 0:00:04]} 2. Nf3 {[%emt 0:00:02]} Nf6 {[%emt 0:00:02]} 3. g3 {[%emt 0:00:01]} g6 {[%emt 0:00:13]} 4. Bg2 {[%emt 0:00:02]} Bg7 {[%emt 0:00:01]} 5. O-O {[%emt 0:00:02]} O-O {[%emt 0:00:02]} 6. c4 {[%emt 0:00:04]} Nc6 {[%emt 0:00:13]} 7. Nbd2 {[%emt 0:01:46]} dxc4 {[%emt 0:00:43]} 8. Nxc4 {[%emt 0:00:02]} Nd5 {[%emt 0:00:39]} 9. e3 {[%emt 0:01:16]} Nb6 {[%emt 0:00:32]} 10. Nce5 {[%emt 0:00:14]} Nxe5 {[%emt 0:00:49] Die Stellung ist ausgeglichen.} 11. Nxe5 {[%emt 0:00:02]} c5 {[%emt 0:01:08]} 12. Nf3 {[%emt 0:05:13]} Qc7 {[%emt 0:11:39]} (12... Bd7 $11) 13. Qc2 {[%emt 0:01:46]} Be6 {[%emt 0:00:00]} 14. Bd2 {[%emt 0:00:42]} Rac8 {[%emt 0:00:00]} 15. Rfc1 {[%emt 0:01:09][%cal Rd4c5]} Rfd8 {[%emt 0:00:00]} (15... Nc4 $11) 16. Ba5 {[%emt 0:01:15]} c4 {[%emt 0:00:00]} 17. Ng5 {[%emt 0:01:22] Weiss will Nxe6 spielen.} Bd5 {[%emt 0:00:00]} 18. e4 {[%emt 0:00:06]} f6 {[%emt 0:00:00]} (18... Bc6 $11) 19. Nf3 {[%emt 0:00:51] Weiß steht aktiver.} (19. Bh3 $142 {Zielt auf Ne6 ab.} fxg5 20. exd5 (20. Bxc8 Bf7 $16)) 19... Bf7 {[%emt 0:00:00]} 20. Rd1 {[%emt 0:00:06]} Qd7 {[%emt 0:00:00]} 21. Rac1 {[%emt 0:00:08]} ({Besser ist} 21. a4 $16) 21... Qb5 {[%emt 0:00:00]} 22. Bd2 {[%emt 0:00:25]} Qa4 {[%emt 0:00:07]} 23. Qxa4 {[%emt 0:00:10]} Nxa4 {[%emt 0:00:02]} 24. Rc2 {[%emt 0:00:01]} b5 {[%emt 0:00:16]} 25. Ba5 {[%emt 0:00:01]} Rd6 {[%emt 0:00:06]} 26. b3 {[%emt 0:00:01]} Nb6 {[%emt 0:00:21]} 27. Rdc1 {[%emt 0:00:01]} Rcd8 {[%emt 0:00:06]} ({Vorzuziehen ist} 27... Bh6 $11 28. Rb1 Bg7) 28. d5 {[%emt 0:00:03] Nd4 wäre nun fies.} cxb3 (28... f5 $14) 29. axb3 $16 {[%emt 0:00:01]} f5 {[%emt 0:00:05]} 30. Ng5 $36 {[%emt 0:00:14][%mdl 2048] Weiss ist am Drücker.} fxe4 {[%emt 0:00:12]} 31. Nxf7 {[%emt 0:00:01]} ({Und nicht} 31. Nxe4 Rxd5 32. Bf1 h6 $11) 31... Kxf7 {[%emt 0:00:01]} 32. Bxe4 {[%emt 0:00:02]} R8d7 {[%emt 0:00:04]} (32... Bf6 $16 33. Kg2 Bd4) 33. Bb4 $18 {[%emt 0:00:17]} Rf6 {[%emt 0:00:01]} 34. Rc7 {[%emt 0:00:04] Rxd7 ist eine echte Drohung.} Rxc7 {[%emt 0:00:17] [#]} (34... a5 {ist eine bessere Chance.} 35. Bxa5 Rxc7 36. Rxc7 Rd6) 35. Rxc7 {[%emt 0:00:02]} a5 {[%emt 0:00:05]} 36. Rxe7+ {[%emt 0:00:11]} Kf8 {[%emt 0:00:03]} (36... Kg8 $142) 37. Bc5 {[%emt 0:00:01] Weiß steht klar auf Gewinn.} Kg8 {[%emt 0:00:03]} 38. Rb7 {[%emt 0:00:05]} Nc8 {[%emt 0:00:11]} 39. Rb8 {[%emt 0:00:04] Gewichteter Fehlerwert: Weiß=0.25 (präzise) /Schwarz=0.44.  Fehler:       	Weiß=2     	Schwarz=8     Ungenau:       	Weiß=6     	Schwarz=1     OK:         	Weiß=4     	Schwarz=6     Bester:       	Weiß=4     	Schwarz=1} 1-0

[Event "Grand Prix Romania 1st Stage 2024"]
[Site "Bucuresti"]
[Date "2024.03.23"]
[Round "3.21"]
[White "Sachilaru, Alexandru"]
[Black "Parligras, Mircea-Emilian"]
[Result "1-0"]
[ECO "B92"]
[WhiteElo "2203"]
[BlackElo "2543"]
[Annotator "TA"]
[PlyCount "77"]
[EventDate "2024.03.20"]
[EventType "swiss"]
[EventCountry "ROU"]
[SourceTitle "playchess.com"]
[Source "ChessBase"]
[SourceQuality "1"]
[TimeControl "900+5"]

{[%evp 15,77,2,12,-31,-16,-37,-31,-52,-27,-25,-14,-27,-26,-182,-189,-189,-196,-195,-189,-166,-171,-172,-90,-106,-39,-93,-85,-206,-158,-168,-172,-241,-247,-248,-238,-281,-275,-334,-310,-615,-612,-637,-608,-3094,-2811,-5704,-288,-288,-284,-29982,446,466,433,0,477,477,29995,29996,29996,29992,29994,29995,29997,872]} 1. e4 {[%emt 0:00:02]} c5 {[%emt 0:00:02]} 2. Nf3 {[%emt 0:00:03]} d6 {[%emt 0:00:02]} 3. d4 {[%emt 0:00:03]} cxd4 {[%emt 0:00:03]} 4. Nxd4 {[%emt 0:00:02]} Nf6 {[%emt 0:00:03]} 5. Nc3 {[%emt 0:00:01]} a6 {[%emt 0:00:01]} 6. Be2 {[%emt 0:00:07]} e5 {[%emt 0:00:06]} 7. Nb3 {[%emt 0:00:04]} Be7 {[%emt 0:00:03]} 8. g4 {[%emt 0:00:04]} h6 $1 {[%emt 0:00:50]} 9. g5 {[%emt 0:00:04]} hxg5 {[%emt 0:00:03]} 10. Bxg5 {[%emt 0:00:04]} Be6 {[%emt 0:01:06]} (10... Nxe4 {mit weiteren Verwicklungen.} 11. Nxe4 Bxg5 12. Qxd6 Nc6) 11. Qd2 {[%emt 0:00:47] Schwarz steht etwas besser.} Nbd7 {[%emt 0:00:09]} 12. O-O-O {[%emt 0:04:25]} b5 {[%emt 0:00:04] Weiss sollte ...b4 verhindern.} 13. a3 {[%emt 0:01:45]} Rc8 {[%emt 0:00:27]} 14. h4 $2 {[%emt 0:00:59]} (14. Kb1 $11 {und Weiss steht sicher.}) 14... Bxb3 $19 {[%emt 0:00:30]} 15. Bxf6 {[%emt 0:01:36]} (15. cxb3 Nxe4 16. Qd5 Nxf2 $19 (16... Bxg5+ $2 17. hxg5 Qxg5+ 18. Kb1 $19)) 15... Nxf6 {[%emt 0:00:28]} 16. cxb3 {[%emt 0:00:02]} Nxe4 {[%emt 0:00:04]} 17. Qe3 {[%emt 0:00:22]} Nxc3 {[%emt 0:00:41]} (17... Rxh4 18. Rxh4 Bxh4 19. Qxe4 $18) 18. bxc3 {[%emt 0:00:01]} Rxh4 {[%emt 0:03:53]} (18... Bxh4 19. c4 $17) (18... d5 $19 {...Qa5 ist eine echte Drohung.} 19. Bg4 (19. Qxe5 $2 O-O $19) 19... Rc5 (19... Bxa3+ 20. Kb1 $14)) 19. Kb2 {[%emt 0:00:21]} Rf4 {[%emt 0:02:24]} (19... Qc7 $17 {[%cal Oe7g5]} 20. Rxh4 Bxh4) 20. Rh3 {[%emt 0:04:12]} ({Günstiger ist} 20. Rh8+ $15 Bf8 21. Bf3) 20... Qc7 {[%emt 0:01:20]} 21. Rg3 {[%emt 0:00:35]} (21. Rh8+ $17 Bf8 22. Rd2) 21... Bf6 {[%emt 0:01:17]} 22. Bg4 {[%emt 0:00:32]} Rb8 {[%emt 0:00:44]} 23. Re1 {[%emt 0:00:19]} (23. Bf3 {ist wohl besser.}) 23... Kf8 {[%emt 0:00:06]} 24. Bf3 {[%emt 0:00:19]} a5 {[%emt 0:00:26]} 25. Rh1 {[%emt 0:00:09]} g6 {[%emt 0:00:34] Droht stark ...b4.} 26. Bd5 {[%emt 0:00:05]} b4 {[%emt 0:00:16]} 27. axb4 {[%emt 0:00:08]} (27. Rc1) 27... axb4 {[%emt 0:00:02]} 28. c4 {[%emt 0:00:02]} Qa5 {[%emt 0:00:24] ...e4+ wäre nun fies.} 29. Rh7 {[%emt 0:00:09]} e4+ {[%emt 0:00:34]} 30. Kc2 {[%emt 0:00:02]} Qa2+ $2 {[%emt 0:00:01]} (30... Rxf2+ 31. Qxf2 Qa2+ 32. Kd1 Qxf2 33. Rxf7+ Ke8 34. Rxg6 Qf3+ 35. Kc2 Qd3+ 36. Kc1 Qc3+ 37. Kd1 Qxb3+ 38. Kd2 e3+ 39. Ke1 Qb1+ 40. Ke2 Qxg6) 31. Kd1 {[%emt 0:00:02]} Qb1+ {[%emt 0:00:07]} (31... Qxf2 $2 32. Qxf2 Rxf2 33. Rxf7+ Ke8 34. Rxg6 Rf1+ 35. Ke2 $18) 32. Ke2 $2 {[%emt 0:00:02]} (32. Qc1 $19 Qxc1+ 33. Kxc1) 32... Qc2+ $4 {[%emt 0:00:07][%mdl 8192]} (32... Bc3 $1 33. Rxf7+ Rxf7 34. Qh6+ Ke7 (34... Bg7 $2 35. Qh2 $19) 35. Rxc3 bxc3 36. Qh4+ Kd7 37. Be6+ Kxe6 38. Qg4+ Ke7 39. Qh4+ Kd7 40. Qh3+ Kc6 41. Qxc3 Rxb3 42. Qxb3 Qxb3 43. Kf1 Qd1+ (43... Qxc4+ 44. Kg1 Qc1+ 45. Kg2 Qd2 46. Kh1 Rxf2 47. Kg1 Qe1#) 44. Kg2 Qf3+ 45. Kg1 Qxf2+ 46. Kh1 Rh7#) 33. Kf1 $18 {[%emt 0:00:03]} Be5 {[%emt 0:00:18] [#]} 34. Rh8+ $40 {[%emt 0:00:13][%mdl 128] Schwarz muss sich nun genau verteidigen.} ({Vergiftet wäre} 34. Qxf4 $2 Bxf4 35. Rxf7+ Ke8 36. Rxf4 Qc1+ 37. Kg2 Qxf4 $19) ({Weiss kommt nicht vorbei an} 34. Qa7 $1 $18 {[%cal Rh7f7][%mdl 512]} Rxf2+ 35. Qxf2 Qxf2+ 36. Kxf2) 34... Bxh8 $2 {[%emt 0:00:04][%mdl 8192]} (34... Kg7 $1 $11 35. Rxb8 Qd1+ 36. Kg2 Rh4 37. Rxg6+ (37. Rh3 Rg4+ 38. Rg3 Bf4 $15) 37... fxg6 38. Rg8+ Kh7 39. Qa7+ Kh6 40. Rxg6+ Kxg6 41. Qf7+ Kh6 42. Qe6+ Kg5 43. Qg8+ Kf5 44. Qc8+ Kg5 45. Qg8+ Kh6 46. Qe6+ Kg5 47. Qg8+) 35. Qxf4 {[%emt 0:00:01][%csl Gd5][%cal Rf4f7]} f5 {[%emt 0:00:35]} (35... Rb7 $18 36. Bxb7 Be5 37. Qh6+ (37. Qxe4 Qc1+ 38. Qe1 Qxe1+ 39. Kxe1 Bxg3 $18) 37... Ke8 38. Bc6+ Ke7 39. Qh4+ Bf6 40. Qxe4+ Qxe4 41. Bxe4 Kf8) 36. Qxd6+ {[%emt 0:00:02] Weiß setzt Matt.} Ke8 {[%emt 0:00:02]} 37. Qxb8+ {[%emt 0:00:04]} Ke7 {[%emt 0:00:01]} 38. Qc7+ {[%emt 0:00:02]} Kf6 {[%emt 0:00:01]} 39. Qd6+ {[%emt 0:00:03] Weiß hat das Spiel gedreht.   Gewichteter Fehlerwert: Weiß=1.04/Schwarz=0.61.  Verlustzug:     	---       	Schwarz=1     Gewinn verpasst:   	Weiß=1     	Schwarz=1     Fehler:       	Weiß=6     	Schwarz=3     OK:         	Weiß=8     	Schwarz=6     Bester:       	Weiß=1     	Schwarz=3} 1-0

[Event "Grand Prix Romania 1st Stage 2024"]
[Site "Bucuresti"]
[Date "2024.03.23"]
[Round "3.22"]
[White "Zajic, Milan"]
[Black "Ciocani, Iosif"]
[Result "1-0"]
[ECO "B48"]
[WhiteElo "2436"]
[BlackElo "2177"]
[Annotator "TA"]
[PlyCount "77"]
[EventDate "2024.03.20"]
[EventType "swiss"]
[EventCountry "ROU"]
[SourceTitle "playchess.com"]
[Source "ChessBase"]
[SourceQuality "1"]
[TimeControl "900+5"]

{[%evp 13,77,25,27,15,4,16,46,36,45,29,45,33,39,34,239,121,129,145,128,137,162,163,197,86,171,60,102,52,65,46,74,62,223,81,83,85,115,50,43,42,54,0,0,-158,-159,-148,-166,-166,-157,-158,51,0,97,94,128,132,835,2280,2280,215,2367,2446,1048,918,870,588]} 1. e4 {[%emt 0:00:05]} c5 {[%emt 0:00:05]} 2. Nf3 {[%emt 0:00:05]} e6 {[%emt 0:00:05]} 3. d4 {[%emt 0:00:05]} cxd4 {[%emt 0:00:05]} 4. Nxd4 {[%emt 0:00:05]} Nc6 {[%emt 0:00:03]} 5. Nc3 {[%emt 0:00:01]} Qc7 {[%emt 0:00:05]} 6. Be3 {[%emt 0:00:05]} a6 {[%emt 0:00:03]} 7. Qd2 {[%emt 0:00:03]} Nf6 {[%emt 0:00:05]} 8. f4 {[%emt 0:00:05]} Bb4 {[%emt 0:01:53] Zielt auf ...Nxe4 ab.} 9. Bd3 {[%emt 0:00:02]} d5 {[%emt 0:03:26]} 10. e5 {[%emt 0:00:08] Weiß steht etwas besser.} Nd7 {[%emt 0:00:04]} 11. O-O {[%emt 0:00:49]} O-O {[%emt 0:01:42]} 12. Rf3 {[%emt 0:00:46]} Nxd4 {[%emt 0:01:58]} 13. Bxd4 {[%emt 0:00:02][%cal Oc3d5] Schwarz muss nun Nxd5! beachten.} Nc5 $2 {[%emt 0:01:15] [#]} (13... Bc5 $14 14. Ne2 f6) 14. Nxd5 $1 {[%emt 0:02:05][%mdl 512]} exd5 $16 {[%emt 0:00:51]} 15. Qxb4 {[%emt 0:00:04]} Nxd3 {[%emt 0:00:27]} 16. cxd3 {[%emt 0:11:55] f5 ist eine echte Drohung.} (16. Rxd3 Qxc2 17. Rd2 Qc6 $14) 16... Bf5 {[%emt 0:00:20]} 17. Qd2 {[%emt 0:00:00]} Rac8 {[%emt 0:00:16]} 18. Rf2 {[%emt 0:00:00]} (18. h3 $18 {ist der präzise Gewinnweg.}) 18... Qc6 {[%emt 0:00:25]} (18... h5 $16) 19. Re1 {[%emt 0:00:00]} (19. g4 $1 $18 {[%cal Rg4f5]} Bxg4 20. f5) 19... Qb5 {[%emt 0:01:02]} 20. Rf3 {[%emt 0:00:00]} (20. g4 $16 Bxd3 21. f5) 20... Qa4 {[%emt 0:00:48]} 21. Qe3 {[%emt 0:00:00]} h5 {[%emt 0:00:40][%cal Of8e8]} 22. Rg3 {[%emt 0:00:00]} Rfe8 {[%emt 0:00:18]} (22... Rc6 $1 $14) 23. Rg5 {[%emt 0:00:00]} (23. e6 $1 $18 Rxe6 24. Rxg7+ Kf8 25. Be5) 23... g6 {[%emt 0:00:02][%cal Oh5h4]} 24. h3 {[%emt 0:00:00] Droht g4 und aus.} h4 {[%emt 0:00:11] [#]} 25. Bc3 {[%emt 0:00:00]} ({Vorzuziehen ist} 25. Rg4 $1 $16 {[%cal Rg4h4]} Bxg4 (25... Qxa2 $2 26. Rxh4 Qa5 27. e6 $18) 26. hxg4) 25... f6 $14 {[%emt 0:00:32]} 26. Rxf5 gxf5 {[%emt 0:00:01]} 27. Qf2 {[%emt 0:00:22]} (27. d4 $14) 27... d4 $1 $11 {[%emt 0:00:18]} 28. Bxd4 {[%emt 0:00:28]} (28. b3 $11 Qb5 29. Bxd4 (29. Qxd4 $2 Red8 $17)) 28... Rc2 $17 {[%emt 0:00:05]} (28... Qxa2 $2 29. Qxh4 Qd5 30. Bc3 $18) 29. Qe3 {[%emt 0:00:02] [#]} Qc6 {[%emt 0:00:16]} 30. Re2 {[%emt 0:00:11]} Rxe2 {[%emt 0:00:04]} 31. Qxe2 $19 {[%emt 0:00:12][%mdl 4096] Endspiel. KQR-KQB} Qd5 $2 (31... Qc1+ $17 32. Qf1 Qxf1+ 33. Kxf1 fxe5 34. Bxe5 Kf7) 32. Qf2 {[%emt 0:00:00]} ({Besser ist} 32. Bc3 $14 Re7 33. Kh2) 32... fxe5 {[%emt 0:00:13]} (32... Rd8 $11 33. Bc3 Qxd3) 33. Bxe5 $16 {[%emt 0:00:00]} Qxd3 {[%emt 0:00:03]} 34. Qxh4 {[%emt 0:00:07] Droht Matt per Qh8+.} Qd7 $2 {[%emt 0:00:08][%mdl 8192]} (34... Re6 $16 35. Kh2 Kf8 36. Qh8+ Ke7) 35. Qh8+ {[%emt 0:00:05]} (35. Qg5+ $142 Kf8 36. Qf6+ Kg8 37. Qg6+ Kf8 38. Bd6+ Re7 39. Kh2 (39. Bxe7+ Qxe7 40. Qxf5+ Ke8 $18)) 35... Kf7 $18 {[%emt 0:00:01]} 36. Qf6+ {[%emt 0:00:03]} Kg8 {[%emt 0:00:01]} 37. Qg6+ {[%emt 0:00:01] Weiß steht klar auf Gewinn.} Kf8 {[%emt 0:00:07]} 38. Bd6+ {[%emt 0:00:01]} Re7 {[%emt 0:00:01]} 39. Qf6+ {[%emt 0:00:01] Weiß hat das Spiel gedreht.   Gewichteter Fehlerwert: Weiß=0.44/Schwarz=0.54.  Verlustzug:     	---       	Schwarz=3     Fehler:       	Weiß=10    	Schwarz=3     Ungenau:       	---       	Schwarz=5     OK:         	Weiß=9     	Schwarz=8     Bester:       	Weiß=2     	Schwarz=2     Stark:        	---       	Schwarz=1} 1-0

[Event "Grand Prix Romania 1st Stage 2024"]
[Site "Bucuresti"]
[Date "2024.03.23"]
[Round "3.23"]
[White "Cosma, Elena-Luminita"]
[Black "Grigore, George-Gabriel"]
[Result "1/2-1/2"]
[ECO "A49"]
[WhiteElo "2238"]
[BlackElo "2423"]
[Annotator "TA"]
[PlyCount "97"]
[EventDate "2024.03.20"]
[EventType "swiss"]
[EventCountry "ROU"]
[SourceTitle "playchess.com"]
[Source "ChessBase"]
[SourceQuality "1"]
[TimeControl "900+5"]

{[%evp 14,97,0,0,0,0,25,0,0,0,0,0,0,-13,-2,-4,0,0,-4,-4,0,0,0,-18,22,29,52,42,54,54,53,50,53,58,42,25,60,36,93,63,62,58,58,57,83,75,106,108,106,114,104,63,63,63,63,56,55,55,55,55,55,55,55,55,69,55,55,55,55,55,55,55,55,55,55,55,55,55,55,55,55,55,55,55,55,55]} 1. d4 {[%emt 0:00:02]} Nf6 {[%emt 0:00:04]} 2. Nf3 {[%emt 0:00:02]} g6 {[%emt 0:00:03]} 3. g3 {[%emt 0:00:14]} Bg7 {[%emt 0:00:07]} 4. Bg2 {[%emt 0:00:01]} d6 {[%emt 0:00:29]} 5. O-O {[%emt 0:00:37]} O-O {[%emt 0:00:03]} 6. b3 {[%emt 0:00:01]} e5 {[%emt 0:02:15]} 7. dxe5 {[%emt 0:00:05]} dxe5 {[%emt 0:00:20]} 8. Ba3 {[%emt 0:00:03]} Qxd1 {[%emt 0:00:02]} 9. Rxd1 {[%emt 0:00:02]} Re8 {[%emt 0:00:01]} 10. Nc3 {[%emt 0:01:49]} e4 {[%emt 0:02:19] The position is equal.} 11. Nd4 {[%emt 0:01:11][%cal Bf3d4,Bd4e2,Be2g3][%mdl 32]} a6 {[%emt 0:00:22]} 12. e3 {[%emt 0:00:18]} b6 {[%emt 0:04:14]} 13. h3 {[%emt 0:00:17]} Bb7 {[%emt 0:00:11]} 14. g4 {[%emt 0:02:10]} h6 {[%emt 0:01:35]} 15. Nde2 {[%emt 0:00:35]} Nbd7 {[%emt 0:00:28][%cal Bb8d7,Bd7f8,Bf8h7,Bh7g5][%mdl 32]} 16. Rab1 {[%emt 0:01:01]} Nf8 {[%emt 0:00:28]} 17. Ng3 {[%emt 0:01:01]} N8h7 {[%emt 0:00:37]} 18. Bb2 {[%emt 0:00:42]} Re6 {[%emt 0:01:34]} 19. Nce2 {[%emt 0:00:35]} Rae8 {[%emt 0:00:21]} 20. c4 {[%emt 0:01:03]} Ng5 {[%emt 0:00:20]} 21. Nf4 {[%emt 0:00:21]} R6e7 {[%emt 0:00:06]} 22. Bxf6 {[%emt 0:00:32]} Bxf6 {[%emt 0:00:05]} 23. Nd5 {[%emt 0:00:01]} Bxd5 {[%emt 0:00:18]} 24. Rxd5 {[%emt 0:00:01]} Re6 {[%emt 0:00:26]} 25. Rbd1 {[%emt 0:00:12]} c6 {[%emt 0:00:14]} ({Black should play} 25... Be7 $14) 26. Rd7 {[%emt 0:00:09]} b5 {[%emt 0:00:04]} 27. Rb7 {[%emt 0:00:22]} bxc4 {[%emt 0:00:06]} 28. bxc4 {[%emt 0:00:01]} a5 {[%emt 0:00:03]} 29. Rdd7 {[%emt 0:00:17] White is more active.} R6e7 {[%emt 0:00:01]} 30. Rxe7 {[%emt 0:00:17]} Rxe7 {[%emt 0:00:01]} 31. Rxe7 {[%emt 0:00:03]} Bxe7 {[%emt 0:00:02]} 32. Nxe4 {[%emt 0:00:02]} Nxe4 {[%emt 0:00:03] White is slightly better.} 33. Bxe4 $16 {[%emt 0:00:02][%mdl 4096] Endgame. KB-KB} c5 {[%emt 0:00:04]} 34. a4 {[%emt 0:00:05]} Bh4 {[%emt 0:00:05]} 35. Bd5 {[%emt 0:00:12]} Kf8 {[%emt 0:00:03]} 36. f4 {[%emt 0:00:03]} Ke7 {[%emt 0:00:05]} 37. Kg2 {[%emt 0:00:02]} g5 {[%emt 0:00:07]} 38. Kf3 {[%emt 0:00:04]} Be1 {[%emt 0:00:01]} 39. e4 {[%emt 0:01:17]} Bd2 {[%emt 0:00:20]} 40. fxg5 {[%emt 0:00:03]} hxg5 {[%emt 0:00:02]} 41. e5 {[%emt 0:00:02]} f6 {[%emt 0:00:09]} 42. Ke4 {[%emt 0:00:02]} fxe5 {[%emt 0:00:06]} 43. Kxe5 {[%emt 0:00:03]} Be1 {[%emt 0:00:05]} 44. Be4 {[%emt 0:00:04]} Bd2 {[%emt 0:00:05]} 45. Bf5 {[%emt 0:00:01]} Be1 {[%emt 0:00:03]} 46. Kd5 {[%emt 0:00:07]} Bb4 {[%emt 0:00:02]} 47. Kc6 {[%emt 0:00:48]} Kf6 {[%emt 0:00:03]} 48. Kd6 $1 {[%emt 0:00:01]} Ba3 {[%emt 0:00:02]} 49. Be4 {[%emt 0:02:07] Weighted Error Value: White=0.05 (flawless) /Black=0.07 (flawless) .  Mistake:       	---       	Black=1      Inaccurate:     	White=2     	Black=4      OK:         	White=13    	Black=19     Best:        	White=1     	Black=2      Strong:       	White=1     	---} 1/2-1/2